[Event "*** Titled Tuesday Blitz"]
[Site "Chess.com"]
[Date "2020.04.07"]
[Round "2"]
[White "TheKingDoctor"]
[Black "Perimir"]
[Result "0-1"]
[WhiteElo "2090"]
[BlackElo "2411"]
[TimeControl "180+1"]
[EndTime "13:18:58 PDT"]
[Termination "Perimir won on time"]

1. e4 {[%clk 0:03:00.9]} 1... c5 {[%clk 0:02:59.6]} 2. c3 {[%clk 0:03:00.4]}
2... Nf6 {[%clk 0:02:59.1]} 3. e5 {[%clk 0:03:00.4]} 3... Nd5 {[%clk 0:02:59.7]}
4. d4 {[%clk 0:03:01.3]} 4... cxd4 {[%clk 0:03:00.6]} 5. Nf3 {[%clk 0:03:01.2]}
5... d6 {[%clk 0:02:59.8]} 6. cxd4 {[%clk 0:03:01.6]} 6... Nc6 {[%clk
0:02:59.2]} 7. Bc4 {[%clk 0:02:56.9]} 7... e6 {[%clk 0:02:59.2]} 8. O-O {[%clk
0:02:55.1]} 8... Be7 {[%clk 0:02:59.3]} 9. Qe2 {[%clk 0:02:53.8]} 9... O-O
{[%clk 0:02:58.6]} 10. Nc3 {[%clk 0:02:53.2]} 10... Nxc3 {[%clk 0:02:56.1]} 11.
bxc3 {[%clk 0:02:53.9]} 11... dxe5 {[%clk 0:02:56.7]} 12. dxe5 {[%clk
0:02:51.8]} 12... Qa5 {[%clk 0:02:57.2]} 13. Bd2 {[%clk 0:02:45.2]} 13... Rd8
{[%clk 0:02:47.2]} 14. Rfe1 {[%clk 0:02:38.9]} 14... Bd7 {[%clk 0:02:37.2]} 15.
Qe4 {[%clk 0:02:30.5]} 15... Qa4 {[%clk 0:02:36.5]} 16. Bg5 {[%clk 0:02:08.4]}
16... h6 {[%clk 0:02:30.7]} 17. Bxe7 {[%clk 0:01:33.8]} 17... Nxe7 {[%clk
0:02:31.6]} 18. Bd3 {[%clk 0:01:01.3]} 18... Qxe4 {[%clk 0:02:30.3]} 19. Bxe4
{[%clk 0:01:02.2]} 19... Bc6 {[%clk 0:02:24.2]} 20. Rab1 {[%clk 0:01:01]} 20...
Rd7 {[%clk 0:02:19.8]} 21. Nd4 {[%clk 0:00:59.5]} 21... Bxe4 {[%clk 0:02:18.4]}
22. Rxe4 {[%clk 0:01:00.4]} 22... Rc8 {[%clk 0:02:18.3]} 23. Nb5 {[%clk
0:00:56.6]} 23... a6 {[%clk 0:02:08.1]} 24. Nd6 {[%clk 0:00:50.9]} 24... Rxc3
{[%clk 0:02:08.2]} 25. h3 {[%clk 0:00:48.4]} 25... b5 {[%clk 0:01:44.6]} 26. a4
{[%clk 0:00:47.8]} 26... bxa4 {[%clk 0:01:28.1]} 27. Rxa4 {[%clk 0:00:48.2]}
27... Ng6 {[%clk 0:01:28.2]} 28. Rb8+ {[%clk 0:00:44.5]} 28... Kh7 {[%clk
0:01:27.9]} 29. f4 {[%clk 0:00:31.9]} 29... f6 {[%clk 0:01:26]} 30. Ra5 {[%clk
0:00:13.8]} 30... fxe5 {[%clk 0:01:05.9]} 31. fxe5 {[%clk 0:00:14.7]} 31... Nxe5
{[%clk 0:01:04.2]} 32. Ne4 {[%clk 0:00:14.8]} 32... Rc1+ {[%clk 0:01:01.2]} 33.
Kh2 {[%clk 0:00:14.6]} 33... Nc6 {[%clk 0:00:54.5]} 34. Rc5 {[%clk 0:00:13.5]}
34... Rxc5 {[%clk 0:00:53.4]} 35. Nxc5 {[%clk 0:00:14.4]} 35... Nxb8 {[%clk
0:00:54.1]} 0-1

[Event "*** Titled Tuesday Blitz"]
[Site "Chess.com"]
[Date "2020.04.07"]
[Round "2"]
[White "Micki-taryan"]
[Black "vinniethepooh"]
[Result "1-0"]
[WhiteElo "3067"]
[BlackElo "2620"]
[TimeControl "180+1"]
[EndTime "13:18:59 PDT"]
[Termination "Micki-taryan won by resignation"]

1. d4 {[%clk 0:03:00.9]} 1... f6 {[%clk 0:03:00]} 2. c4 {[%clk 0:02:57.2]} 2...
e5 {[%clk 0:02:57.3]} 3. Nc3 {[%clk 0:02:51.7]} 3... Nc6 {[%clk 0:02:56.2]} 4.
Nf3 {[%clk 0:02:49.7]} 4... Bb4 {[%clk 0:02:48.8]} 5. e3 {[%clk 0:02:39.7]} 5...
Nh6 {[%clk 0:02:40.2]} 6. Bd3 {[%clk 0:02:34.5]} 6... Qe7 {[%clk 0:02:34.5]} 7.
Bc2 {[%clk 0:02:28.2]} 7... e4 {[%clk 0:02:28]} 8. Nd2 {[%clk 0:02:26.3]} 8...
Bxc3 {[%clk 0:02:26.5]} 9. bxc3 {[%clk 0:02:25.7]} 9... f5 {[%clk 0:02:27]} 10.
Qh5+ {[%clk 0:02:20.1]} 10... Qf7 {[%clk 0:02:14.9]} 11. Qxf7+ {[%clk
0:02:19.7]} 11... Kxf7 {[%clk 0:02:15.8]} 12. f3 {[%clk 0:02:19]} 12... exf3
{[%clk 0:02:14.2]} 13. gxf3 {[%clk 0:02:19.5]} 13... d6 {[%clk 0:02:11.3]} 14.
Kf2 {[%clk 0:02:18.5]} 14... g6 {[%clk 0:02:09.8]} 15. h4 {[%clk 0:02:17.1]}
15... Bd7 {[%clk 0:01:54.2]} 16. e4 {[%clk 0:02:04]} 16... fxe4 {[%clk
0:01:47.7]} 17. Nxe4 {[%clk 0:02:01.2]} 17... Nf5 {[%clk 0:01:47.7]} 18. h5
{[%clk 0:01:59.1]} 18... Rae8 {[%clk 0:01:39.4]} 19. Bg5 {[%clk 0:01:51.5]}
19... h6 {[%clk 0:00:54.6]} 20. hxg6+ {[%clk 0:01:51.3]} 20... Kxg6 {[%clk
0:00:55.5]} 21. Bd2 {[%clk 0:01:51.8]} 21... Nce7 {[%clk 0:00:43.6]} 22. Rag1+
{[%clk 0:01:47]} 22... Kf7 {[%clk 0:00:43.8]} 23. Rh5 {[%clk 0:01:32]} 23... Be6
{[%clk 0:00:32.6]} 24. Rgh1 {[%clk 0:01:30.9]} 24... Ng7 {[%clk 0:00:28.3]} 25.
Ng5+ {[%clk 0:01:27.5]} 25... hxg5 {[%clk 0:00:20.9]} 26. Rxh8 {[%clk
0:01:26.8]} 26... Rxh8 {[%clk 0:00:18.8]} 27. Rxh8 {[%clk 0:01:27.7]} 27... Bxc4
{[%clk 0:00:19.7]} 28. Bb3 {[%clk 0:01:25.7]} 28... Bxb3 {[%clk 0:00:14.6]} 29.
axb3 {[%clk 0:01:26.6]} 29... Ne6 {[%clk 0:00:12.9]} 30. Ra8 {[%clk 0:01:20.8]}
30... a6 {[%clk 0:00:12.5]} 31. Ra7 {[%clk 0:01:17.5]} 31... b5 {[%clk
0:00:04.7]} 32. Rxa6 {[%clk 0:01:15.2]} 32... Nd5 {[%clk 0:00:03.8]} 33. Ra5
{[%clk 0:01:12.5]} 33... c6 {[%clk 0:00:02.9]} 34. Ra6 {[%clk 0:01:12.9]} 34...
Ne7 {[%clk 0:00:02.2]} 35. Be3 {[%clk 0:01:13.4]} 35... Nc7 {[%clk 0:00:02.2]}
36. Ra7 {[%clk 0:01:12.7]} 36... Ne6 {[%clk 0:00:02.1]} 37. c4 {[%clk
0:01:12.4]} 37... bxc4 {[%clk 0:00:02.2]} 38. bxc4 {[%clk 0:01:13.3]} 38... Kf6
{[%clk 0:00:02.9]} 39. Ra6 {[%clk 0:01:10.2]} 39... Nf5 {[%clk 0:00:03.2]} 40.
Rxc6 {[%clk 0:01:07.6]} 40... Nexd4 {[%clk 0:00:03.5]} 41. Bxd4+ {[%clk
0:01:07.6]} 41... Nxd4 {[%clk 0:00:04.4]} 42. Rxd6+ {[%clk 0:01:07.8]} 42... Ke5
{[%clk 0:00:05.1]} 43. Rd5+ {[%clk 0:01:07.3]} 1-0

[Event "*** Titled Tuesday Blitz"]
[Site "Chess.com"]
[Date "2020.04.07"]
[Round "2"]
[White "Playgood28"]
[Black "viggi38"]
[Result "0-1"]
[WhiteElo "2246"]
[BlackElo "2480"]
[TimeControl "180+1"]
[EndTime "13:19:01 PDT"]
[Termination "viggi38 won on time"]

1. d4 {[%clk 0:03:00.9]} 1... e6 {[%clk 0:02:58.4]} 2. e4 {[%clk 0:02:59.7]}
2... d5 {[%clk 0:02:57.5]} 3. Nd2 {[%clk 0:02:59.1]} 3... Nc6 {[%clk 0:02:57.1]}
4. c3 {[%clk 0:02:57.4]} 4... e5 {[%clk 0:02:56]} 5. exd5 {[%clk 0:02:50.8]}
5... Qxd5 {[%clk 0:02:56.9]} 6. Ngf3 {[%clk 0:02:49.8]} 6... exd4 {[%clk
0:02:39.1]} 7. Bc4 {[%clk 0:02:46.9]} 7... Qd8 {[%clk 0:02:25.9]} 8. O-O {[%clk
0:02:41.1]} 8... Be7 {[%clk 0:02:20]} 9. Qb3 {[%clk 0:02:17]} 9... Nh6 {[%clk
0:02:16.4]} 10. Ne4 {[%clk 0:02:15.2]} 10... Na5 {[%clk 0:02:13.2]} 11. Qa4+
{[%clk 0:02:12.9]} 11... c6 {[%clk 0:02:13.2]} 12. Bxh6 {[%clk 0:02:11.4]} 12...
gxh6 {[%clk 0:02:11.9]} 13. Rfe1 {[%clk 0:02:02.6]} 13... b5 {[%clk 0:02:04.8]}
14. Bxb5 {[%clk 0:01:57.6]} 14... cxb5 {[%clk 0:02:03.5]} 15. Qxb5+ {[%clk
0:01:54.8]} 15... Kf8 {[%clk 0:02:02.5]} 16. Rad1 {[%clk 0:01:41.5]} 16... Bd7
{[%clk 0:01:59.9]} 17. Qh5 {[%clk 0:01:38.3]} 17... Qb6 {[%clk 0:01:55.7]} 18.
Ne5 {[%clk 0:01:28.2]} 18... Be8 {[%clk 0:01:53.8]} 19. Rxd4 {[%clk 0:01:16.8]}
19... Rg8 {[%clk 0:01:43.6]} 20. Nd6 {[%clk 0:00:55.4]} 20... Bxd6 {[%clk
0:01:28.4]} 21. Qxh6+ {[%clk 0:00:54.4]} 21... Rg7 {[%clk 0:01:28.8]} 22. Rxd6
{[%clk 0:00:53.6]} 22... Qxb2 {[%clk 0:01:28.2]} 23. Rd3 {[%clk 0:00:27.6]}
23... Qb6 {[%clk 0:01:10.3]} 24. Qf4 {[%clk 0:00:18.3]} 24... Nc6 {[%clk
0:01:09.8]} 25. Rg3 {[%clk 0:00:17.2]} 25... Nxe5 {[%clk 0:00:47.4]} 26. Qxe5
{[%clk 0:00:14.3]} 26... Rxg3 {[%clk 0:00:44.7]} 27. hxg3 {[%clk 0:00:13.5]}
27... f6 {[%clk 0:00:37.6]} 28. Qf4 {[%clk 0:00:10.7]} 28... Bg6 {[%clk
0:00:35.3]} 29. Qh6+ {[%clk 0:00:06.8]} 29... Kf7 {[%clk 0:00:33.2]} 30. g4
{[%clk 0:00:05.7]} 30... Qc5 {[%clk 0:00:27.7]} 31. Qd2 {[%clk 0:00:03.5]} 31...
Qc6 {[%clk 0:00:22.9]} 0-1

[Event "*** Titled Tuesday Blitz"]
[Site "Chess.com"]
[Date "2020.04.07"]
[Round "2"]
[White "marcodobrikov"]
[Black "dennisodessa"]
[Result "1-0"]
[WhiteElo "2483"]
[BlackElo "2246"]
[TimeControl "180+1"]
[EndTime "13:19:05 PDT"]
[Termination "marcodobrikov won by resignation"]

1. e4 {[%clk 0:03:00.9]} 1... e6 {[%clk 0:02:57.7]} 2. d4 {[%clk 0:03:00.3]}
2... d5 {[%clk 0:02:57]} 3. Nc3 {[%clk 0:02:59.6]} 3... Nc6 {[%clk 0:02:52.7]}
4. Nf3 {[%clk 0:02:57.2]} 4... Nf6 {[%clk 0:02:44.1]} 5. Bg5 {[%clk 0:02:52.3]}
5... Be7 {[%clk 0:02:40.4]} 6. Bb5 {[%clk 0:02:43.5]} 6... Nxe4 {[%clk
0:02:30.3]} 7. Nxe4 {[%clk 0:02:39.5]} 7... dxe4 {[%clk 0:02:28.9]} 8. Bxc6+
{[%clk 0:02:38.7]} 8... bxc6 {[%clk 0:02:26.9]} 9. Bxe7 {[%clk 0:02:38.8]} 9...
Qxe7 {[%clk 0:02:27.8]} 10. Nd2 {[%clk 0:02:33.5]} 10... Qb4 {[%clk 0:02:06.4]}
11. Qg4 {[%clk 0:02:21.6]} 11... Qxd4 {[%clk 0:02:00.7]} 12. c3 {[%clk
0:02:17.9]} 12... Qe5 {[%clk 0:01:55.3]} 13. Nc4 {[%clk 0:02:13.2]} 13... Qf6
{[%clk 0:01:28.7]} 14. Qxe4 {[%clk 0:01:48.7]} 14... O-O {[%clk 0:01:27.9]} 15.
Qxc6 {[%clk 0:01:44.1]} 15... Rb8 {[%clk 0:01:26.4]} 16. O-O {[%clk 0:01:36.9]}
16... Bb7 {[%clk 0:01:25.2]} 17. Qxc7 {[%clk 0:01:33.4]} 17... Rfc8 {[%clk
0:01:11.3]} 18. Qg3 {[%clk 0:01:33.1]} 18... Bd5 {[%clk 0:01:08.3]} 19. Nd6
{[%clk 0:01:29.3]} 19... Rd8 {[%clk 0:01:04.6]} 20. c4 {[%clk 0:01:28.3]} 20...
e5 {[%clk 0:00:47.7]} 21. c5 {[%clk 0:01:20.8]} 21... Rxb2 {[%clk 0:00:43]} 22.
Rac1 {[%clk 0:01:01.3]} 22... h6 {[%clk 0:00:18.7]} 23. Rfd1 {[%clk 0:00:57]}
23... Bc6 {[%clk 0:00:18.5]} 24. Nc4 {[%clk 0:00:56.1]} 24... Rxd1+ {[%clk
0:00:16.4]} 25. Rxd1 {[%clk 0:00:57]} 25... Rxa2 {[%clk 0:00:16.5]} 26. Nxe5
{[%clk 0:00:55.9]} 26... Be4 {[%clk 0:00:08.7]} 27. f3 {[%clk 0:00:42.3]} 27...
Bf5 {[%clk 0:00:08.5]} 28. c6 {[%clk 0:00:41.1]} 28... Rc2 {[%clk 0:00:06.7]}
29. Nd7 {[%clk 0:00:20.3]} 29... Qe7 {[%clk 0:00:04.6]} 30. Qb8+ {[%clk
0:00:17.5]} 30... Kh7 {[%clk 0:00:03.4]} 31. Nf8+ {[%clk 0:00:17.6]} 31... Kg8
{[%clk 0:00:02.2]} 32. Ng6+ {[%clk 0:00:17.4]} 32... Kh7 {[%clk 0:00:02.7]} 33.
Nxe7 {[%clk 0:00:17.6]} 1-0

[Event "*** Titled Tuesday Blitz"]
[Site "Chess.com"]
[Date "2020.04.07"]
[Round "2"]
[White "Man-Chuk"]
[Black "Cukiero"]
[Result "1-0"]
[WhiteElo "2774"]
[BlackElo "2519"]
[TimeControl "180+1"]
[EndTime "13:19:06 PDT"]
[Termination "Man-Chuk won by resignation"]

1. d4 {[%clk 0:02:59.4]} 1... Nf6 {[%clk 0:02:59.7]} 2. c4 {[%clk 0:02:59.3]}
2... e6 {[%clk 0:02:59.8]} 3. Nf3 {[%clk 0:02:59.4]} 3... b6 {[%clk 0:02:59.8]}
4. g3 {[%clk 0:02:59]} 4... Bb7 {[%clk 0:03:00]} 5. Bg2 {[%clk 0:02:58.8]} 5...
c5 {[%clk 0:03:00.2]} 6. d5 {[%clk 0:02:35.7]} 6... exd5 {[%clk 0:03:00.1]} 7.
Nh4 {[%clk 0:02:35.8]} 7... Nc6 {[%clk 0:02:59.1]} 8. cxd5 {[%clk 0:02:29.6]}
8... Nb4 {[%clk 0:02:58.4]} 9. Nc3 {[%clk 0:02:26.7]} 9... d6 {[%clk 0:02:43.4]}
10. O-O {[%clk 0:02:22.6]} 10... g6 {[%clk 0:02:41.9]} 11. Bf4 {[%clk
0:02:07.7]} 11... Nh5 {[%clk 0:02:26.5]} 12. Bd2 {[%clk 0:01:31.4]} 12... Be7
{[%clk 0:02:21.6]} 13. a3 {[%clk 0:01:27]} 13... Na6 {[%clk 0:02:19.5]} 14. Nf3
{[%clk 0:01:23.3]} 14... O-O {[%clk 0:02:17.9]} 15. e4 {[%clk 0:01:22.6]} 15...
Bf6 {[%clk 0:02:15]} 16. g4 {[%clk 0:01:16.2]} 16... Ng7 {[%clk 0:02:13]} 17.
Bf4 {[%clk 0:01:15.4]} 17... Re8 {[%clk 0:02:10.2]} 18. Re1 {[%clk 0:01:15.3]}
18... Nc7 {[%clk 0:02:04.3]} 19. h3 {[%clk 0:01:12.6]} 19... b5 {[%clk
0:01:57.5]} 20. Rc1 {[%clk 0:01:05]} 20... a5 {[%clk 0:01:43.9]} 21. e5 {[%clk
0:01:04.7]} 21... dxe5 {[%clk 0:01:36.3]} 22. Bxe5 {[%clk 0:00:58.8]} 22... b4
{[%clk 0:01:03.7]} 23. Bxf6 {[%clk 0:00:57.6]} 23... Qxf6 {[%clk 0:01:02.7]} 24.
Ne4 {[%clk 0:00:57.7]} 24... Qxb2 {[%clk 0:01:00.1]} 25. Rc2 {[%clk 0:00:45.2]}
25... Qxa3 {[%clk 0:00:54.2]} 26. Nf6+ {[%clk 0:00:45.3]} 26... Kh8 {[%clk
0:00:54]} 27. Nxe8 {[%clk 0:00:41.8]} 27... Ncxe8 {[%clk 0:00:53.6]} 28. d6
{[%clk 0:00:29.5]} 28... Rd8 {[%clk 0:00:45.3]} 29. d7 {[%clk 0:00:27.5]} 29...
Nf6 {[%clk 0:00:40.7]} 30. Ne5 {[%clk 0:00:26.4]} 30... Bxg2 {[%clk 0:00:37.7]}
31. Kxg2 {[%clk 0:00:13.7]} 31... Kg8 {[%clk 0:00:28]} 32. Rxc5 {[%clk
0:00:13.8]} 32... Qa2 {[%clk 0:00:22]} 33. Rc8 {[%clk 0:00:11]} 33... Ne6 {[%clk
0:00:18.9]} 34. Nc6 {[%clk 0:00:11.2]} 34... Ne4 {[%clk 0:00:16]} 35. Rxe4
{[%clk 0:00:10.4]} 1-0

[Event "*** Titled Tuesday Blitz"]
[Site "Chess.com"]
[Date "2020.04.07"]
[Round "2"]
[White "Misticpikachu"]
[Black "Dinamo81"]
[Result "1/2-1/2"]
[WhiteElo "2229"]
[BlackElo "2583"]
[TimeControl "180+1"]
[EndTime "13:19:07 PDT"]
[Termination "Game drawn by repetition"]

1. c4 {[%clk 0:03:00.9]} 1... e6 {[%clk 0:02:58.9]} 2. Nf3 {[%clk 0:03:00.2]}
2... d5 {[%clk 0:02:58]} 3. e3 {[%clk 0:03:00.8]} 3... Nf6 {[%clk 0:02:51]} 4.
Nc3 {[%clk 0:03:01.2]} 4... c5 {[%clk 0:02:49.4]} 5. cxd5 {[%clk 0:03:01.2]}
5... exd5 {[%clk 0:02:48.8]} 6. d4 {[%clk 0:03:01.4]} 6... a6 {[%clk 0:02:42.6]}
7. Be2 {[%clk 0:02:57.5]} 7... Nc6 {[%clk 0:02:40.9]} 8. O-O {[%clk 0:02:56.9]}
8... Bg4 {[%clk 0:02:39.4]} 9. b3 {[%clk 0:02:34.8]} 9... cxd4 {[%clk
0:02:19.1]} 10. Nxd4 {[%clk 0:02:27.9]} 10... Bxe2 {[%clk 0:02:15]} 11. Ncxe2
{[%clk 0:02:27.5]} 11... Qd7 {[%clk 0:02:08.4]} 12. Nxc6 {[%clk 0:02:23.1]}
12... bxc6 {[%clk 0:02:07.6]} 13. Bb2 {[%clk 0:02:23.1]} 13... Be7 {[%clk
0:02:06.9]} 14. Rc1 {[%clk 0:02:23]} 14... O-O {[%clk 0:02:05.7]} 15. Nd4 {[%clk
0:02:04]} 15... c5 {[%clk 0:02:00]} 16. Nf3 {[%clk 0:02:03.4]} 16... Ne4 {[%clk
0:01:50.1]} 17. Ne5 {[%clk 0:01:43]} 17... Qe6 {[%clk 0:01:47.1]} 18. Nd3 {[%clk
0:01:37]} 18... Rfd8 {[%clk 0:01:28.2]} 19. Nf4 {[%clk 0:01:30.7]} 19... Qf5
{[%clk 0:01:20.2]} 20. Qh5 {[%clk 0:01:20.2]} 20... Qxh5 {[%clk 0:01:20]} 21.
Nxh5 {[%clk 0:01:20.4]} 21... g6 {[%clk 0:01:11.9]} 22. Ng3 {[%clk 0:01:19.6]}
22... Nxg3 {[%clk 0:01:07.6]} 23. hxg3 {[%clk 0:01:19.3]} 23... Rac8 {[%clk
0:01:04.1]} 24. Rfd1 {[%clk 0:01:15.2]} 24... c4 {[%clk 0:01:03.1]} 25. bxc4
{[%clk 0:01:08.1]} 25... dxc4 {[%clk 0:01:04]} 26. Rxd8+ {[%clk 0:00:58.8]}
26... Bxd8 {[%clk 0:01:04.9]} 27. Kf1 {[%clk 0:00:55.6]} 27... f5 {[%clk
0:00:59.5]} 28. Ke2 {[%clk 0:00:52.4]} 28... Kf7 {[%clk 0:00:59.5]} 29. Bd4
{[%clk 0:00:45.7]} 29... Ke6 {[%clk 0:00:53.1]} 30. Rb1 {[%clk 0:00:36.2]} 30...
Ba5 {[%clk 0:00:53]} 31. Kd1 {[%clk 0:00:33.8]} 31... Rc7 {[%clk 0:00:48.6]} 32.
Kc2 {[%clk 0:00:32.6]} 32... Kd5 {[%clk 0:00:46.4]} 33. Bb6 {[%clk 0:00:28.3]}
33... Bxb6 {[%clk 0:00:39.1]} 34. Rxb6 {[%clk 0:00:29.2]} 34... Rc6 {[%clk
0:00:37]} 35. Rb7 {[%clk 0:00:22.3]} 35... h5 {[%clk 0:00:35.9]} 36. Kc3 {[%clk
0:00:22.7]} 36... Ke5 {[%clk 0:00:31.1]} 37. Rb4 {[%clk 0:00:21.7]} 37... Kd5
{[%clk 0:00:30.9]} 38. Ra4 {[%clk 0:00:21.1]} 38... Ke5 {[%clk 0:00:27.3]} 39.
Ra5+ {[%clk 0:00:21.4]} 39... Ke4 {[%clk 0:00:27.1]} 40. Ra4 {[%clk 0:00:20.8]}
40... Kd5 {[%clk 0:00:26.6]} 41. Ra5+ {[%clk 0:00:21.2]} 41... Ke4 {[%clk
0:00:26.2]} 42. Ra4 {[%clk 0:00:21.6]} 42... Kd5 {[%clk 0:00:25.4]} 43. Ra5+
{[%clk 0:00:21.7]} 43... Ke4 {[%clk 0:00:25.5]} 1/2-1/2

[Event "*** Titled Tuesday Blitz"]
[Site "Chess.com"]
[Date "2020.04.07"]
[Round "2"]
[White "praveenb2002"]
[Black "Sam_ChessMood"]
[Result "0-1"]
[WhiteElo "2590"]
[BlackElo "2916"]
[TimeControl "180+1"]
[EndTime "13:19:08 PDT"]
[Termination "Sam_ChessMood won by resignation"]

1. d4 {[%clk 0:03:00.9]} 1... Nf6 {[%clk 0:02:59.6]} 2. c4 {[%clk 0:03:00.9]}
2... e6 {[%clk 0:03:00.1]} 3. Nf3 {[%clk 0:02:59.2]} 3... d5 {[%clk 0:02:59.8]}
4. Nc3 {[%clk 0:02:58]} 4... Be7 {[%clk 0:02:59.2]} 5. Bf4 {[%clk 0:02:57.4]}
5... O-O {[%clk 0:02:58.5]} 6. e3 {[%clk 0:02:57.6]} 6... c5 {[%clk 0:02:58.9]}
7. dxc5 {[%clk 0:02:54.9]} 7... Bxc5 {[%clk 0:02:59.8]} 8. cxd5 {[%clk 0:02:54]}
8... Nxd5 {[%clk 0:02:59.9]} 9. Nxd5 {[%clk 0:02:53.9]} 9... exd5 {[%clk
0:03:00.8]} 10. a3 {[%clk 0:02:53.1]} 10... Nc6 {[%clk 0:02:57.4]} 11. Bd3
{[%clk 0:02:53.4]} 11... Bb6 {[%clk 0:02:50.9]} 12. O-O {[%clk 0:02:52.9]} 12...
Qf6 {[%clk 0:02:49.5]} 13. Qc2 {[%clk 0:02:49.6]} 13... h6 {[%clk 0:02:47.1]}
14. h3 {[%clk 0:02:48.1]} 14... d4 {[%clk 0:02:41]} 15. Rfe1 {[%clk 0:02:45.8]}
15... dxe3 {[%clk 0:02:37.4]} 16. Bxe3 {[%clk 0:02:41.2]} 16... Bxh3 {[%clk
0:02:34.8]} 17. Bxb6 {[%clk 0:02:27.1]} 17... axb6 {[%clk 0:02:35]} 18. Be4
{[%clk 0:02:27.8]} 18... Be6 {[%clk 0:02:13.8]} 19. Rac1 {[%clk 0:02:27.4]}
19... Rac8 {[%clk 0:02:12.5]} 20. Qb1 {[%clk 0:02:25]} 20... Rfd8 {[%clk
0:02:12.3]} 21. Rc3 {[%clk 0:02:23.1]} 21... g5 {[%clk 0:01:53.3]} 22. Qc1
{[%clk 0:02:21.8]} 22... g4 {[%clk 0:01:48.4]} 23. Nd2 {[%clk 0:02:21.4]} 23...
Ne5 {[%clk 0:01:36.5]} 24. Nf1 {[%clk 0:02:20.9]} 24... Rxc3 {[%clk 0:01:24.7]}
25. Qxc3 {[%clk 0:02:20.6]} 25... Kg7 {[%clk 0:01:19.1]} 26. Qb4 {[%clk
0:02:19.7]} 26... h5 {[%clk 0:01:15]} 27. Qxb6 {[%clk 0:02:14.3]} 27... h4
{[%clk 0:01:15.4]} 28. Qxb7 {[%clk 0:02:10.9]} 28... h3 {[%clk 0:01:03.1]} 29.
Ng3 {[%clk 0:02:06.8]} 29... Rh8 {[%clk 0:01:03]} 30. gxh3 {[%clk 0:01:42.3]}
30... gxh3 {[%clk 0:01:02.9]} 31. Rf1 {[%clk 0:01:38.8]} 31... h2+ {[%clk
0:00:46.3]} 32. Kh1 {[%clk 0:01:37.3]} 32... Bh3 {[%clk 0:00:44.9]} 33. Bg2
{[%clk 0:01:36.4]} 33... Ng4 {[%clk 0:00:39.7]} 34. Bxh3 {[%clk 0:01:28.7]}
34... Nxf2+ {[%clk 0:00:25.6]} 35. Kg2 {[%clk 0:01:18.3]} 35... Rxh3 {[%clk
0:00:20.4]} 36. Rxf2 {[%clk 0:01:15.8]} 36... Qh4 {[%clk 0:00:07.9]} 37. Nf5+
{[%clk 0:01:15.1]} 37... Kg8 {[%clk 0:00:04.9]} 38. Qb8+ {[%clk 0:00:35.8]}
38... Kh7 {[%clk 0:00:04.9]} 39. Rf1 {[%clk 0:00:30.1]} 39... Qg4+ {[%clk
0:00:03.9]} 40. Kh1 {[%clk 0:00:28.8]} 40... Qe4+ {[%clk 0:00:03.7]} 0-1

[Event "*** Titled Tuesday Blitz"]
[Site "Chess.com"]
[Date "2020.04.07"]
[Round "2"]
[White "tufferguy"]
[Black "MixMasterChess"]
[Result "1-0"]
[WhiteElo "2412"]
[BlackElo "2105"]
[TimeControl "180+1"]
[EndTime "13:19:08 PDT"]
[Termination "tufferguy won by checkmate"]

1. e4 {[%clk 0:03:00.9]} 1... e6 {[%clk 0:03:00.1]} 2. d4 {[%clk 0:02:57.6]}
2... d5 {[%clk 0:03:00.4]} 3. Nc3 {[%clk 0:02:57]} 3... Bb4 {[%clk 0:02:59.7]}
4. e5 {[%clk 0:02:55.2]} 4... Ne7 {[%clk 0:02:58.9]} 5. a3 {[%clk 0:02:53.2]}
5... Bxc3+ {[%clk 0:02:58.4]} 6. bxc3 {[%clk 0:02:54.1]} 6... c5 {[%clk
0:02:58.7]} 7. a4 {[%clk 0:02:52]} 7... Qa5 {[%clk 0:02:55.2]} 8. Bb5+ {[%clk
0:02:45]} 8... Bd7 {[%clk 0:02:53.8]} 9. Bd2 {[%clk 0:02:41.3]} 9... a6 {[%clk
0:02:45.6]} 10. Bd3 {[%clk 0:02:08.4]} 10... Nbc6 {[%clk 0:02:38.3]} 11. Qg4
{[%clk 0:01:59.1]} 11... c4 {[%clk 0:02:24]} 12. Be2 {[%clk 0:01:44.4]} 12...
Nf5 {[%clk 0:02:22.1]} 13. Nf3 {[%clk 0:01:41.4]} 13... O-O-O {[%clk 0:02:15.9]}
14. O-O {[%clk 0:01:40.6]} 14... Rdg8 {[%clk 0:02:14.7]} 15. Qf4 {[%clk
0:01:19.4]} 15... h6 {[%clk 0:02:12.7]} 16. h4 {[%clk 0:00:50.5]} 16... Nce7
{[%clk 0:01:55.4]} 17. Rfb1 {[%clk 0:00:35.3]} 17... g5 {[%clk 0:01:37.5]} 18.
hxg5 {[%clk 0:00:33.6]} 18... hxg5 {[%clk 0:01:37.6]} 19. Nxg5 {[%clk
0:00:34.5]} 19... Ng6 {[%clk 0:01:37.4]} 20. Qg4 {[%clk 0:00:20.1]} 20... Rh4
{[%clk 0:01:35.7]} 21. Qf3 {[%clk 0:00:18.8]} 21... Rgh8 {[%clk 0:01:23.6]} 22.
g3 {[%clk 0:00:17]} 22... Rh2 {[%clk 0:01:03.1]} 23. Nxf7 {[%clk 0:00:14.3]}
23... R8h7 {[%clk 0:00:29.3]} 24. Nd6+ {[%clk 0:00:13.9]} 24... Nxd6 {[%clk
0:00:27.8]} 25. exd6 {[%clk 0:00:14.8]} 25... e5 {[%clk 0:00:25.3]} 26. dxe5
{[%clk 0:00:13.1]} 26... Nxe5 {[%clk 0:00:19.7]} 27. Qf8+ {[%clk 0:00:12.6]}
27... Qd8 {[%clk 0:00:15.6]} 28. Qxd8+ {[%clk 0:00:09.2]} 28... Kxd8 {[%clk
0:00:15.4]} 29. Bg5+ {[%clk 0:00:04.5]} 29... Kc8 {[%clk 0:00:14.7]} 30. f4
{[%clk 0:00:04.7]} 30... Rh1+ {[%clk 0:00:14]} 31. Kf2 {[%clk 0:00:04.5]} 31...
R7h2+ {[%clk 0:00:14.7]} 32. Ke3 {[%clk 0:00:04.8]} 32... Nc6 {[%clk 0:00:14]}
33. Rxh1 {[%clk 0:00:03.8]} 33... Rxh1 {[%clk 0:00:13.7]} 34. Rxh1 {[%clk
0:00:04.4]} 34... d4+ {[%clk 0:00:14.2]} 35. cxd4 {[%clk 0:00:03.9]} 35... c3
{[%clk 0:00:10.9]} 36. Rh8+ {[%clk 0:00:04.8]} 36... Nd8 {[%clk 0:00:09.3]} 37.
Rxd8# {[%clk 0:00:03.9]} 1-0